{"text_format":"1","workbook":"xlsx","n_sheets":1,"sheets":["keab"],"not_rendered":{"charts":0,"images":0,"macros":0,"external_links":3,"defined_names":98,"comments":0,"pivot_tables":0},"unopened":[],"bounds":{"document_bytes":16777216,"sheet_cells":100000,"rows_first":2000,"rows_last":500,"rows_between":2000,"halvings":0,"cell_chars":16384,"cell_head_chars":4096},"cells_cut":0,"cells_raw":0,"read":"whole","date_system":"1900"}

{"sheet":"keab","index":0,"n_rows":206,"n_cols":41,"rows_kept":206,"cut":false,"hidden":false,"merged":[[1,36,2,40],[1,1,2,4],[1,5,1,15],[1,16,1,17],[1,21,1,22],[1,23,1,25]]}
[null,2,3,4,5,1,2,3,4,5,6,7,8,9,10,11,12,13,14,15,16,17,18,19,20,21,22,23,24,25,26,27,28,29,30,31,37,38,39,40,41]
[null,null,null,null,null,"غياب شهر",null,null,null,null,null,null,null,null,null,null,{"$f":"mount(T2)","v":{"$error":"#NAME?"}},null,")",3,"(","لسنة",null,2022]
[null,null,null,null,null,{"$f":"F4","v":"2022-03-01"},{"$f":"G4","v":"2022-03-02"},"2022-03-03","2022-03-04","2022-03-05","2022-03-06","2022-03-07","2022-03-08","2022-03-09","2022-03-10","2022-03-11","2022-03-12","2022-03-13","2022-03-14","2022-03-15","2022-03-16","2022-03-17","2022-03-18","2022-03-19","2022-03-20","2022-03-21","2022-03-22","2022-03-23","2022-03-24","2022-03-25","2022-03-26","2022-03-27","2022-03-28","2022-03-29","2022-03-30","2022-03-31"]
[null,"الرقم","اسم المعلم","الصفة","الفترة",{"$f":"DATE(X2,T2,1)","v":"2022-03-01"},{"$f":"IFERROR(IF(F4+1<=DATE($X$2,$T$2+1,0),F4+1,\"\"),\"\")","v":"2022-03-02"},{"$f":"IFERROR(IF(G4+1<=DATE($X$2,$T$2+1,0),G4+1,\"\"),\"\")","v":"2022-03-03"},"2022-03-04","2022-03-05","2022-03-06","2022-03-07","2022-03-08","2022-03-09","2022-03-10","2022-03-11","2022-03-12","2022-03-13","2022-03-14","2022-03-15","2022-03-16","2022-03-17","2022-03-18","2022-03-19","2022-03-20","2022-03-21","2022-03-22","2022-03-23","2022-03-24","2022-03-25","2022-03-26","2022-03-27","2022-03-28","2022-03-29","2022-03-30","2022-03-31","أيام الغياب","أيام الغياب بالحروف","عدد أيام الغياب","شهر الغياب","السنة"]
[null,4,"ابراهيم الصيد المصروب العموري",null,null,"غ",null,null,null,null,"غ",null,null,null,null,null,null,"غ",null,null,null,null,null,null,null,"غ",null,null,null,null,null,null,null,null,null,"غ","31-21-13-6-1","ثلاثة أيام",3,1,2022]
[]
[]
[]
[]
[]
[]
[]
[]
[]
[]
[]
[null,null,null,null,null,null,null,null,null,null,null,null,null,null,null,null,null,null,null,null,null,null,null,null,null,null,null,null,null,null,null,null,null,null,null,null,{"$f":"Alsqr(F17:AJ17,\"غ\",\" -\",1,1)","v":{"$error":"#NAME?"}},{"$f":"IF(AK17=\"\",\"\",elaiam(AM17))","v":{"$error":"#NAME?"}},{"$f":"IF(AK17=\"\",\"\",COUNTIF(F17:AJ17,\"غ\"))","v":{"$error":"#NAME?"}}]
[null,null,null,null,null,null,null,null,null,null,null,null,null,null,null,null,null,null,null,null,null,null,null,null,null,null,null,null,null,null,null,null,null,null,null,null,{"$error":"#NAME?"},{"$f":"IF(AK18=\"\",\"\",elaiam(AM18))","v":{"$error":"#NAME?"}},{"$error":"#NAME?"}]
[null,null,null,null,null,null,null,null,null,null,null,null,null,null,null,null,null,null,null,null,null,null,null,null,null,null,null,null,null,null,null,null,null,null,null,null,{"$error":"#NAME?"},{"$f":"IF(AK19=\"\",\"\",elaiam(AM19))","v":{"$error":"#NAME?"}},{"$error":"#NAME?"}]
[null,null,null,null,null,null,null,null,null,null,null,null,null,null,null,null,null,null,null,null,null,null,null,null,null,null,null,null,null,null,null,null,null,null,null,null,{"$error":"#NAME?"},{"$f":"IF(AK20=\"\",\"\",elaiam(AM20))","v":{"$error":"#NAME?"}},{"$error":"#NAME?"}]
[null,null,null,null,null,null,null,null,null,null,null,null,null,null,null,null,null,null,null,null,null,null,null,null,null,null,null,null,null,null,null,null,null,null,null,null,{"$error":"#NAME?"},{"$f":"IF(AK21=\"\",\"\",elaiam(AM21))","v":{"$error":"#NAME?"}},{"$error":"#NAME?"}]
[null,null,null,null,null,null,null,null,null,null,null,null,null,null,null,null,null,null,null,null,null,null,null,null,null,null,null,null,null,null,null,null,null,null,null,null,{"$error":"#NAME?"},{"$f":"IF(AK22=\"\",\"\",elaiam(AM22))","v":{"$error":"#NAME?"}},{"$error":"#NAME?"}]
[null,null,null,null,null,null,null,null,null,null,null,null,null,null,null,null,null,null,null,null,null,null,null,null,null,null,null,null,null,null,null,null,null,null,null,null,{"$error":"#NAME?"},{"$f":"IF(AK23=\"\",\"\",elaiam(AM23))","v":{"$error":"#NAME?"}},{"$error":"#NAME?"}]
[null,null,null,null,null,null,null,null,null,null,null,null,null,null,null,null,null,null,null,null,null,null,null,null,null,null,null,null,null,null,null,null,null,null,null,null,{"$error":"#NAME?"},{"$f":"IF(AK24=\"\",\"\",elaiam(AM24))","v":{"$error":"#NAME?"}},{"$error":"#NAME?"}]
[null,null,null,null,null,null,null,null,null,null,null,null,null,null,null,null,null,null,null,null,null,null,null,null,null,null,null,null,null,null,null,null,null,null,null,null,{"$error":"#NAME?"},{"$f":"IF(AK25=\"\",\"\",elaiam(AM25))","v":{"$error":"#NAME?"}},{"$error":"#NAME?"}]
[null,null,null,null,null,null,null,null,null,null,null,null,null,null,null,null,null,null,null,null,null,null,null,null,null,null,null,null,null,null,null,null,null,null,null,null,{"$error":"#NAME?"},{"$f":"IF(AK26=\"\",\"\",elaiam(AM26))","v":{"$error":"#NAME?"}},{"$error":"#NAME?"}]
[null,null,null,null,null,null,null,null,null,null,null,null,null,null,null,null,null,null,null,null,null,null,null,null,null,null,null,null,null,null,null,null,null,null,null,null,{"$error":"#NAME?"},{"$f":"IF(AK27=\"\",\"\",elaiam(AM27))","v":{"$error":"#NAME?"}},{"$error":"#NAME?"}]
[null,null,null,null,null,null,null,null,null,null,null,null,null,null,null,null,null,null,null,null,null,null,null,null,null,null,null,null,null,null,null,null,null,null,null,null,{"$error":"#NAME?"},{"$f":"IF(AK28=\"\",\"\",elaiam(AM28))","v":{"$error":"#NAME?"}},{"$error":"#NAME?"}]
[null,null,null,null,null,null,null,null,null,null,null,null,null,null,null,null,null,null,null,null,null,null,null,null,null,null,null,null,null,null,null,null,null,null,null,null,{"$error":"#NAME?"},{"$f":"IF(AK29=\"\",\"\",elaiam(AM29))","v":{"$error":"#NAME?"}},{"$error":"#NAME?"}]
[null,null,null,null,null,null,null,null,null,null,null,null,null,null,null,null,null,null,null,null,null,null,null,null,null,null,null,null,null,null,null,null,null,null,null,null,{"$error":"#NAME?"},{"$f":"IF(AK30=\"\",\"\",elaiam(AM30))","v":{"$error":"#NAME?"}},{"$error":"#NAME?"}]
[null,null,null,null,null,null,null,null,null,null,null,null,null,null,null,null,null,null,null,null,null,null,null,null,null,null,null,null,null,null,null,null,null,null,null,null,{"$error":"#NAME?"},{"$f":"IF(AK31=\"\",\"\",elaiam(AM31))","v":{"$error":"#NAME?"}},{"$error":"#NAME?"}]
[null,null,null,null,null,null,null,null,null,null,null,null,null,null,null,null,null,null,null,null,null,null,null,null,null,null,null,null,null,null,null,null,null,null,null,null,{"$error":"#NAME?"},{"$f":"IF(AK32=\"\",\"\",elaiam(AM32))","v":{"$error":"#NAME?"}},{"$error":"#NAME?"}]
[null,null,null,null,null,null,null,null,null,null,null,null,null,null,null,null,null,null,null,null,null,null,null,null,null,null,null,null,null,null,null,null,null,null,null,null,{"$error":"#NAME?"},{"$f":"IF(AK33=\"\",\"\",elaiam(AM33))","v":{"$error":"#NAME?"}},{"$error":"#NAME?"}]
[null,null,null,null,null,null,null,null,null,null,null,null,null,null,null,null,null,null,null,null,null,null,null,null,null,null,null,null,null,null,null,null,null,null,null,null,{"$error":"#NAME?"},{"$f":"IF(AK34=\"\",\"\",elaiam(AM34))","v":{"$error":"#NAME?"}},{"$error":"#NAME?"}]
[null,null,null,null,null,null,null,null,null,null,null,null,null,null,null,null,null,null,null,null,null,null,null,null,null,null,null,null,null,null,null,null,null,null,null,null,{"$error":"#NAME?"},{"$f":"IF(AK35=\"\",\"\",elaiam(AM35))","v":{"$error":"#NAME?"}},{"$error":"#NAME?"}]
[null,null,null,null,null,null,null,null,null,null,null,null,null,null,null,null,null,null,null,null,null,null,null,null,null,null,null,null,null,null,null,null,null,null,null,null,{"$error":"#NAME?"},{"$f":"IF(AK36=\"\",\"\",elaiam(AM36))","v":{"$error":"#NAME?"}},{"$error":"#NAME?"}]
[null,null,null,null,null,null,null,null,null,null,null,null,null,null,null,null,null,null,null,null,null,null,null,null,null,null,null,null,null,null,null,null,null,null,null,null,{"$error":"#NAME?"},{"$f":"IF(AK37=\"\",\"\",elaiam(AM37))","v":{"$error":"#NAME?"}},{"$error":"#NAME?"}]
[null,null,null,null,null,null,null,null,null,null,null,null,null,null,null,null,null,null,null,null,null,null,null,null,null,null,null,null,null,null,null,null,null,null,null,null,{"$error":"#NAME?"},{"$f":"IF(AK38=\"\",\"\",elaiam(AM38))","v":{"$error":"#NAME?"}},{"$error":"#NAME?"}]
[null,null,null,null,null,null,null,null,null,null,null,null,null,null,null,null,null,null,null,null,null,null,null,null,null,null,null,null,null,null,null,null,null,null,null,null,{"$error":"#NAME?"},{"$f":"IF(AK39=\"\",\"\",elaiam(AM39))","v":{"$error":"#NAME?"}},{"$error":"#NAME?"}]
[null,null,null,null,null,null,null,null,null,null,null,null,null,null,null,null,null,null,null,null,null,null,null,null,null,null,null,null,null,null,null,null,null,null,null,null,{"$error":"#NAME?"},{"$f":"IF(AK40=\"\",\"\",elaiam(AM40))","v":{"$error":"#NAME?"}},{"$error":"#NAME?"}]
[null,null,null,null,null,null,null,null,null,null,null,null,null,null,null,null,null,null,null,null,null,null,null,null,null,null,null,null,null,null,null,null,null,null,null,null,{"$error":"#NAME?"},{"$f":"IF(AK41=\"\",\"\",elaiam(AM41))","v":{"$error":"#NAME?"}},{"$error":"#NAME?"}]
[null,null,null,null,null,null,null,null,null,null,null,null,null,null,null,null,null,null,null,null,null,null,null,null,null,null,null,null,null,null,null,null,null,null,null,null,{"$error":"#NAME?"},{"$f":"IF(AK42=\"\",\"\",elaiam(AM42))","v":{"$error":"#NAME?"}},{"$error":"#NAME?"}]
[null,null,null,null,null,null,null,null,null,null,null,null,null,null,null,null,null,null,null,null,null,null,null,null,null,null,null,null,null,null,null,null,null,null,null,null,{"$error":"#NAME?"},{"$f":"IF(AK43=\"\",\"\",elaiam(AM43))","v":{"$error":"#NAME?"}},{"$error":"#NAME?"}]
[null,null,null,null,null,null,null,null,null,null,null,null,null,null,null,null,null,null,null,null,null,null,null,null,null,null,null,null,null,null,null,null,null,null,null,null,{"$error":"#NAME?"},{"$f":"IF(AK44=\"\",\"\",elaiam(AM44))","v":{"$error":"#NAME?"}},{"$error":"#NAME?"}]
[null,null,null,null,null,null,null,null,null,null,null,null,null,null,null,null,null,null,null,null,null,null,null,null,null,null,null,null,null,null,null,null,null,null,null,null,{"$error":"#NAME?"},{"$f":"IF(AK45=\"\",\"\",elaiam(AM45))","v":{"$error":"#NAME?"}},{"$error":"#NAME?"}]
[null,null,null,null,null,null,null,null,null,null,null,null,null,null,null,null,null,null,null,null,null,null,null,null,null,null,null,null,null,null,null,null,null,null,null,null,{"$error":"#NAME?"},{"$f":"IF(AK46=\"\",\"\",elaiam(AM46))","v":{"$error":"#NAME?"}},{"$error":"#NAME?"}]
[null,null,null,null,null,null,null,null,null,null,null,null,null,null,null,null,null,null,null,null,null,null,null,null,null,null,null,null,null,null,null,null,null,null,null,null,{"$error":"#NAME?"},{"$f":"IF(AK47=\"\",\"\",elaiam(AM47))","v":{"$error":"#NAME?"}},{"$error":"#NAME?"}]
[null,null,null,null,null,null,null,null,null,null,null,null,null,null,null,null,null,null,null,null,null,null,null,null,null,null,null,null,null,null,null,null,null,null,null,null,{"$error":"#NAME?"},{"$f":"IF(AK48=\"\",\"\",elaiam(AM48))","v":{"$error":"#NAME?"}},{"$error":"#NAME?"}]
[null,null,null,null,null,null,null,null,null,null,null,null,null,null,null,null,null,null,null,null,null,null,null,null,null,null,null,null,null,null,null,null,null,null,null,null,{"$error":"#NAME?"},{"$f":"IF(AK49=\"\",\"\",elaiam(AM49))","v":{"$error":"#NAME?"}},{"$error":"#NAME?"}]
[null,null,null,null,null,null,null,null,null,null,null,null,null,null,null,null,null,null,null,null,null,null,null,null,null,null,null,null,null,null,null,null,null,null,null,null,{"$error":"#NAME?"},{"$f":"IF(AK50=\"\",\"\",elaiam(AM50))","v":{"$error":"#NAME?"}},{"$error":"#NAME?"}]
[null,null,null,null,null,null,null,null,null,null,null,null,null,null,null,null,null,null,null,null,null,null,null,null,null,null,null,null,null,null,null,null,null,null,null,null,{"$error":"#NAME?"},{"$f":"IF(AK51=\"\",\"\",elaiam(AM51))","v":{"$error":"#NAME?"}},{"$error":"#NAME?"}]
[null,null,null,null,null,null,null,null,null,null,null,null,null,null,null,null,null,null,null,null,null,null,null,null,null,null,null,null,null,null,null,null,null,null,null,null,{"$error":"#NAME?"},{"$f":"IF(AK52=\"\",\"\",elaiam(AM52))","v":{"$error":"#NAME?"}},{"$error":"#NAME?"}]
[null,null,null,null,null,null,null,null,null,null,null,null,null,null,null,null,null,null,null,null,null,null,null,null,null,null,null,null,null,null,null,null,null,null,null,null,{"$error":"#NAME?"},{"$f":"IF(AK53=\"\",\"\",elaiam(AM53))","v":{"$error":"#NAME?"}},{"$error":"#NAME?"}]
[null,null,null,null,null,null,null,null,null,null,null,null,null,null,null,null,null,null,null,null,null,null,null,null,null,null,null,null,null,null,null,null,null,null,null,null,{"$error":"#NAME?"},{"$f":"IF(AK54=\"\",\"\",elaiam(AM54))","v":{"$error":"#NAME?"}},{"$error":"#NAME?"}]
[null,null,null,null,null,null,null,null,null,null,null,null,null,null,null,null,null,null,null,null,null,null,null,null,null,null,null,null,null,null,null,null,null,null,null,null,{"$error":"#NAME?"},{"$f":"IF(AK55=\"\",\"\",elaiam(AM55))","v":{"$error":"#NAME?"}},{"$error":"#NAME?"}]
[null,null,null,null,null,null,null,null,null,null,null,null,null,null,null,null,null,null,null,null,null,null,null,null,null,null,null,null,null,null,null,null,null,null,null,null,{"$error":"#NAME?"},{"$f":"IF(AK56=\"\",\"\",elaiam(AM56))","v":{"$error":"#NAME?"}},{"$error":"#NAME?"}]
[null,null,null,null,null,null,null,null,null,null,null,null,null,null,null,null,null,null,null,null,null,null,null,null,null,null,null,null,null,null,null,null,null,null,null,null,{"$error":"#NAME?"},{"$f":"IF(AK57=\"\",\"\",elaiam(AM57))","v":{"$error":"#NAME?"}},{"$error":"#NAME?"}]
[null,null,null,null,null,null,null,null,null,null,null,null,null,null,null,null,null,null,null,null,null,null,null,null,null,null,null,null,null,null,null,null,null,null,null,null,{"$error":"#NAME?"},{"$f":"IF(AK58=\"\",\"\",elaiam(AM58))","v":{"$error":"#NAME?"}},{"$error":"#NAME?"}]
[null,null,null,null,null,null,null,null,null,null,null,null,null,null,null,null,null,null,null,null,null,null,null,null,null,null,null,null,null,null,null,null,null,null,null,null,{"$error":"#NAME?"},{"$f":"IF(AK59=\"\",\"\",elaiam(AM59))","v":{"$error":"#NAME?"}},{"$error":"#NAME?"}]
[null,null,null,null,null,null,null,null,null,null,null,null,null,null,null,null,null,null,null,null,null,null,null,null,null,null,null,null,null,null,null,null,null,null,null,null,{"$error":"#NAME?"},{"$f":"IF(AK60=\"\",\"\",elaiam(AM60))","v":{"$error":"#NAME?"}},{"$error":"#NAME?"}]
[null,null,null,null,null,null,null,null,null,null,null,null,null,null,null,null,null,null,null,null,null,null,null,null,null,null,null,null,null,null,null,null,null,null,null,null,{"$error":"#NAME?"},{"$f":"IF(AK61=\"\",\"\",elaiam(AM61))","v":{"$error":"#NAME?"}},{"$error":"#NAME?"}]
[null,null,null,null,null,null,null,null,null,null,null,null,null,null,null,null,null,null,null,null,null,null,null,null,null,null,null,null,null,null,null,null,null,null,null,null,{"$error":"#NAME?"},{"$f":"IF(AK62=\"\",\"\",elaiam(AM62))","v":{"$error":"#NAME?"}},{"$error":"#NAME?"}]
[null,null,null,null,null,null,null,null,null,null,null,null,null,null,null,null,null,null,null,null,null,null,null,null,null,null,null,null,null,null,null,null,null,null,null,null,{"$error":"#NAME?"},{"$f":"IF(AK63=\"\",\"\",elaiam(AM63))","v":{"$error":"#NAME?"}},{"$error":"#NAME?"}]
[null,null,null,null,null,null,null,null,null,null,null,null,null,null,null,null,null,null,null,null,null,null,null,null,null,null,null,null,null,null,null,null,null,null,null,null,{"$error":"#NAME?"},{"$f":"IF(AK64=\"\",\"\",elaiam(AM64))","v":{"$error":"#NAME?"}},{"$error":"#NAME?"}]
[null,null,null,null,null,null,null,null,null,null,null,null,null,null,null,null,null,null,null,null,null,null,null,null,null,null,null,null,null,null,null,null,null,null,null,null,{"$error":"#NAME?"},{"$f":"IF(AK65=\"\",\"\",elaiam(AM65))","v":{"$error":"#NAME?"}},{"$error":"#NAME?"}]
[null,null,null,null,null,null,null,null,null,null,null,null,null,null,null,null,null,null,null,null,null,null,null,null,null,null,null,null,null,null,null,null,null,null,null,null,{"$error":"#NAME?"},{"$f":"IF(AK66=\"\",\"\",elaiam(AM66))","v":{"$error":"#NAME?"}},{"$error":"#NAME?"}]
[null,null,null,null,null,null,null,null,null,null,null,null,null,null,null,null,null,null,null,null,null,null,null,null,null,null,null,null,null,null,null,null,null,null,null,null,{"$error":"#NAME?"},{"$f":"IF(AK67=\"\",\"\",elaiam(AM67))","v":{"$error":"#NAME?"}},{"$error":"#NAME?"}]
[null,null,null,null,null,null,null,null,null,null,null,null,null,null,null,null,null,null,null,null,null,null,null,null,null,null,null,null,null,null,null,null,null,null,null,null,{"$f":"Alsqr(F68:AJ68,\"غ\",\" -\",1,1)","v":{"$error":"#NAME?"}},{"$f":"IF(AK68=\"\",\"\",elaiam(AM68))","v":{"$error":"#NAME?"}},{"$f":"IF(AK68=\"\",\"\",COUNTIF(F68:AJ68,\"غ\"))","v":{"$error":"#NAME?"}}]
[null,null,null,null,null,null,null,null,null,null,null,null,null,null,null,null,null,null,null,null,null,null,null,null,null,null,null,null,null,null,null,null,null,null,null,null,{"$error":"#NAME?"},{"$f":"IF(AK69=\"\",\"\",elaiam(AM69))","v":{"$error":"#NAME?"}},{"$error":"#NAME?"}]
[null,null,null,null,null,null,null,null,null,null,null,null,null,null,null,null,null,null,null,null,null,null,null,null,null,null,null,null,null,null,null,null,null,null,null,null,{"$error":"#NAME?"},{"$f":"IF(AK70=\"\",\"\",elaiam(AM70))","v":{"$error":"#NAME?"}},{"$error":"#NAME?"}]
[null,null,null,null,null,null,null,null,null,null,null,null,null,null,null,null,null,null,null,null,null,null,null,null,null,null,null,null,null,null,null,null,null,null,null,null,{"$error":"#NAME?"},{"$f":"IF(AK71=\"\",\"\",elaiam(AM71))","v":{"$error":"#NAME?"}},{"$error":"#NAME?"}]
[null,null,null,null,null,null,null,null,null,null,null,null,null,null,null,null,null,null,null,null,null,null,null,null,null,null,null,null,null,null,null,null,null,null,null,null,{"$error":"#NAME?"},{"$f":"IF(AK72=\"\",\"\",elaiam(AM72))","v":{"$error":"#NAME?"}},{"$error":"#NAME?"}]
[null,null,null,null,null,null,null,null,null,null,null,null,null,null,null,null,null,null,null,null,null,null,null,null,null,null,null,null,null,null,null,null,null,null,null,null,{"$error":"#NAME?"},{"$f":"IF(AK73=\"\",\"\",elaiam(AM73))","v":{"$error":"#NAME?"}},{"$error":"#NAME?"}]
[null,null,null,null,null,null,null,null,null,null,null,null,null,null,null,null,null,null,null,null,null,null,null,null,null,null,null,null,null,null,null,null,null,null,null,null,{"$error":"#NAME?"},{"$f":"IF(AK74=\"\",\"\",elaiam(AM74))","v":{"$error":"#NAME?"}},{"$error":"#NAME?"}]
[null,null,null,null,null,null,null,null,null,null,null,null,null,null,null,null,null,null,null,null,null,null,null,null,null,null,null,null,null,null,null,null,null,null,null,null,{"$error":"#NAME?"},{"$f":"IF(AK75=\"\",\"\",elaiam(AM75))","v":{"$error":"#NAME?"}},{"$error":"#NAME?"}]
[null,null,null,null,null,null,null,null,null,null,null,null,null,null,null,null,null,null,null,null,null,null,null,null,null,null,null,null,null,null,null,null,null,null,null,null,{"$error":"#NAME?"},{"$f":"IF(AK76=\"\",\"\",elaiam(AM76))","v":{"$error":"#NAME?"}},{"$error":"#NAME?"}]
[null,null,null,null,null,null,null,null,null,null,null,null,null,null,null,null,null,null,null,null,null,null,null,null,null,null,null,null,null,null,null,null,null,null,null,null,{"$error":"#NAME?"},{"$f":"IF(AK77=\"\",\"\",elaiam(AM77))","v":{"$error":"#NAME?"}},{"$error":"#NAME?"}]
[null,null,null,null,null,null,null,null,null,null,null,null,null,null,null,null,null,null,null,null,null,null,null,null,null,null,null,null,null,null,null,null,null,null,null,null,{"$error":"#NAME?"},{"$f":"IF(AK78=\"\",\"\",elaiam(AM78))","v":{"$error":"#NAME?"}},{"$error":"#NAME?"}]
[null,null,null,null,null,null,null,null,null,null,null,null,null,null,null,null,null,null,null,null,null,null,null,null,null,null,null,null,null,null,null,null,null,null,null,null,{"$error":"#NAME?"},{"$f":"IF(AK79=\"\",\"\",elaiam(AM79))","v":{"$error":"#NAME?"}},{"$error":"#NAME?"}]
[null,null,null,null,null,null,null,null,null,null,null,null,null,null,null,null,null,null,null,null,null,null,null,null,null,null,null,null,null,null,null,null,null,null,null,null,{"$error":"#NAME?"},{"$f":"IF(AK80=\"\",\"\",elaiam(AM80))","v":{"$error":"#NAME?"}},{"$error":"#NAME?"}]
[null,null,null,null,null,null,null,null,null,null,null,null,null,null,null,null,null,null,null,null,null,null,null,null,null,null,null,null,null,null,null,null,null,null,null,null,{"$error":"#NAME?"},{"$f":"IF(AK81=\"\",\"\",elaiam(AM81))","v":{"$error":"#NAME?"}},{"$error":"#NAME?"}]
[null,null,null,null,null,null,null,null,null,null,null,null,null,null,null,null,null,null,null,null,null,null,null,null,null,null,null,null,null,null,null,null,null,null,null,null,{"$error":"#NAME?"},{"$f":"IF(AK82=\"\",\"\",elaiam(AM82))","v":{"$error":"#NAME?"}},{"$error":"#NAME?"}]
[null,null,null,null,null,null,null,null,null,null,null,null,null,null,null,null,null,null,null,null,null,null,null,null,null,null,null,null,null,null,null,null,null,null,null,null,{"$error":"#NAME?"},{"$f":"IF(AK83=\"\",\"\",elaiam(AM83))","v":{"$error":"#NAME?"}},{"$error":"#NAME?"}]
[null,null,null,null,null,null,null,null,null,null,null,null,null,null,null,null,null,null,null,null,null,null,null,null,null,null,null,null,null,null,null,null,null,null,null,null,{"$error":"#NAME?"},{"$f":"IF(AK84=\"\",\"\",elaiam(AM84))","v":{"$error":"#NAME?"}},{"$error":"#NAME?"}]
[null,null,null,null,null,null,null,null,null,null,null,null,null,null,null,null,null,null,null,null,null,null,null,null,null,null,null,null,null,null,null,null,null,null,null,null,{"$error":"#NAME?"},{"$f":"IF(AK85=\"\",\"\",elaiam(AM85))","v":{"$error":"#NAME?"}},{"$error":"#NAME?"}]
[null,null,null,null,null,null,null,null,null,null,null,null,null,null,null,null,null,null,null,null,null,null,null,null,null,null,null,null,null,null,null,null,null,null,null,null,{"$error":"#NAME?"},{"$f":"IF(AK86=\"\",\"\",elaiam(AM86))","v":{"$error":"#NAME?"}},{"$error":"#NAME?"}]
[null,null,null,null,null,null,null,null,null,null,null,null,null,null,null,null,null,null,null,null,null,null,null,null,null,null,null,null,null,null,null,null,null,null,null,null,{"$error":"#NAME?"},{"$f":"IF(AK87=\"\",\"\",elaiam(AM87))","v":{"$error":"#NAME?"}},{"$error":"#NAME?"}]
[null,null,null,null,null,null,null,null,null,null,null,null,null,null,null,null,null,null,null,null,null,null,null,null,null,null,null,null,null,null,null,null,null,null,null,null,{"$error":"#NAME?"},{"$f":"IF(AK88=\"\",\"\",elaiam(AM88))","v":{"$error":"#NAME?"}},{"$error":"#NAME?"}]
[null,null,null,null,null,null,null,null,null,null,null,null,null,null,null,null,null,null,null,null,null,null,null,null,null,null,null,null,null,null,null,null,null,null,null,null,{"$error":"#NAME?"},{"$f":"IF(AK89=\"\",\"\",elaiam(AM89))","v":{"$error":"#NAME?"}},{"$error":"#NAME?"}]
[null,null,null,null,null,null,null,null,null,null,null,null,null,null,null,null,null,null,null,null,null,null,null,null,null,null,null,null,null,null,null,null,null,null,null,null,{"$error":"#NAME?"},{"$f":"IF(AK90=\"\",\"\",elaiam(AM90))","v":{"$error":"#NAME?"}},{"$error":"#NAME?"}]
[null,null,null,null,null,null,null,null,null,null,null,null,null,null,null,null,null,null,null,null,null,null,null,null,null,null,null,null,null,null,null,null,null,null,null,null,{"$error":"#NAME?"},{"$f":"IF(AK91=\"\",\"\",elaiam(AM91))","v":{"$error":"#NAME?"}},{"$error":"#NAME?"}]
[null,null,null,null,null,null,null,null,null,null,null,null,null,null,null,null,null,null,null,null,null,null,null,null,null,null,null,null,null,null,null,null,null,null,null,null,{"$error":"#NAME?"},{"$f":"IF(AK92=\"\",\"\",elaiam(AM92))","v":{"$error":"#NAME?"}},{"$error":"#NAME?"}]
[null,null,null,null,null,null,null,null,null,null,null,null,null,null,null,null,null,null,null,null,null,null,null,null,null,null,null,null,null,null,null,null,null,null,null,null,{"$error":"#NAME?"},{"$f":"IF(AK93=\"\",\"\",elaiam(AM93))","v":{"$error":"#NAME?"}},{"$error":"#NAME?"}]
[null,null,null,null,null,null,null,null,null,null,null,null,null,null,null,null,null,null,null,null,null,null,null,null,null,null,null,null,null,null,null,null,null,null,null,null,{"$error":"#NAME?"},{"$f":"IF(AK94=\"\",\"\",elaiam(AM94))","v":{"$error":"#NAME?"}},{"$error":"#NAME?"}]
[null,null,null,null,null,null,null,null,null,null,null,null,null,null,null,null,null,null,null,null,null,null,null,null,null,null,null,null,null,null,null,null,null,null,null,null,{"$error":"#NAME?"},{"$f":"IF(AK95=\"\",\"\",elaiam(AM95))","v":{"$error":"#NAME?"}},{"$error":"#NAME?"}]
[null,null,null,null,null,null,null,null,null,null,null,null,null,null,null,null,null,null,null,null,null,null,null,null,null,null,null,null,null,null,null,null,null,null,null,null,{"$error":"#NAME?"},{"$f":"IF(AK96=\"\",\"\",elaiam(AM96))","v":{"$error":"#NAME?"}},{"$error":"#NAME?"}]
[null,null,null,null,null,null,null,null,null,null,null,null,null,null,null,null,null,null,null,null,null,null,null,null,null,null,null,null,null,null,null,null,null,null,null,null,{"$error":"#NAME?"},{"$f":"IF(AK97=\"\",\"\",elaiam(AM97))","v":{"$error":"#NAME?"}},{"$error":"#NAME?"}]
[null,null,null,null,null,null,null,null,null,null,null,null,null,null,null,null,null,null,null,null,null,null,null,null,null,null,null,null,null,null,null,null,null,null,null,null,{"$error":"#NAME?"},{"$f":"IF(AK98=\"\",\"\",elaiam(AM98))","v":{"$error":"#NAME?"}},{"$error":"#NAME?"}]
[null,null,null,null,null,null,null,null,null,null,null,null,null,null,null,null,null,null,null,null,null,null,null,null,null,null,null,null,null,null,null,null,null,null,null,null,{"$error":"#NAME?"},{"$f":"IF(AK99=\"\",\"\",elaiam(AM99))","v":{"$error":"#NAME?"}},{"$error":"#NAME?"}]
[null,null,null,null,null,null,null,null,null,null,null,null,null,null,null,null,null,null,null,null,null,null,null,null,null,null,null,null,null,null,null,null,null,null,null,null,{"$error":"#NAME?"},{"$f":"IF(AK100=\"\",\"\",elaiam(AM100))","v":{"$error":"#NAME?"}},{"$error":"#NAME?"}]
[null,null,null,null,null,null,null,null,null,null,null,null,null,null,null,null,null,null,null,null,null,null,null,null,null,null,null,null,null,null,null,null,null,null,null,null,{"$error":"#NAME?"},{"$f":"IF(AK101=\"\",\"\",elaiam(AM101))","v":{"$error":"#NAME?"}},{"$error":"#NAME?"}]
[null,null,null,null,null,null,null,null,null,null,null,null,null,null,null,null,null,null,null,null,null,null,null,null,null,null,null,null,null,null,null,null,null,null,null,null,{"$error":"#NAME?"},{"$f":"IF(AK102=\"\",\"\",elaiam(AM102))","v":{"$error":"#NAME?"}},{"$error":"#NAME?"}]
[null,null,null,null,null,null,null,null,null,null,null,null,null,null,null,null,null,null,null,null,null,null,null,null,null,null,null,null,null,null,null,null,null,null,null,null,{"$error":"#NAME?"},{"$f":"IF(AK103=\"\",\"\",elaiam(AM103))","v":{"$error":"#NAME?"}},{"$error":"#NAME?"}]
[null,null,null,null,null,null,null,null,null,null,null,null,null,null,null,null,null,null,null,null,null,null,null,null,null,null,null,null,null,null,null,null,null,null,null,null,{"$error":"#NAME?"},{"$f":"IF(AK104=\"\",\"\",elaiam(AM104))","v":{"$error":"#NAME?"}},{"$error":"#NAME?"}]
[null,null,null,null,null,null,null,null,null,null,null,null,null,null,null,null,null,null,null,null,null,null,null,null,null,null,null,null,null,null,null,null,null,null,null,null,{"$error":"#NAME?"},{"$f":"IF(AK105=\"\",\"\",elaiam(AM105))","v":{"$error":"#NAME?"}},{"$error":"#NAME?"}]
[null,null,null,null,null,null,null,null,null,null,null,null,null,null,null,null,null,null,null,null,null,null,null,null,null,null,null,null,null,null,null,null,null,null,null,null,{"$error":"#NAME?"},{"$f":"IF(AK106=\"\",\"\",elaiam(AM106))","v":{"$error":"#NAME?"}},{"$error":"#NAME?"}]
[null,null,null,null,null,null,null,null,null,null,null,null,null,null,null,null,null,null,null,null,null,null,null,null,null,null,null,null,null,null,null,null,null,null,null,null,{"$error":"#NAME?"},{"$f":"IF(AK107=\"\",\"\",elaiam(AM107))","v":{"$error":"#NAME?"}},{"$error":"#NAME?"}]
[null,null,null,null,null,null,null,null,null,null,null,null,null,null,null,null,null,null,null,null,null,null,null,null,null,null,null,null,null,null,null,null,null,null,null,null,{"$error":"#NAME?"},{"$f":"IF(AK108=\"\",\"\",elaiam(AM108))","v":{"$error":"#NAME?"}},{"$error":"#NAME?"}]
[null,null,null,null,null,null,null,null,null,null,null,null,null,null,null,null,null,null,null,null,null,null,null,null,null,null,null,null,null,null,null,null,null,null,null,null,{"$error":"#NAME?"},{"$f":"IF(AK109=\"\",\"\",elaiam(AM109))","v":{"$error":"#NAME?"}},{"$error":"#NAME?"}]
[null,null,null,null,null,null,null,null,null,null,null,null,null,null,null,null,null,null,null,null,null,null,null,null,null,null,null,null,null,null,null,null,null,null,null,null,{"$error":"#NAME?"},{"$f":"IF(AK110=\"\",\"\",elaiam(AM110))","v":{"$error":"#NAME?"}},{"$error":"#NAME?"}]
[null,null,null,null,null,null,null,null,null,null,null,null,null,null,null,null,null,null,null,null,null,null,null,null,null,null,null,null,null,null,null,null,null,null,null,null,{"$error":"#NAME?"},{"$f":"IF(AK111=\"\",\"\",elaiam(AM111))","v":{"$error":"#NAME?"}},{"$error":"#NAME?"}]
[null,null,null,null,null,null,null,null,null,null,null,null,null,null,null,null,null,null,null,null,null,null,null,null,null,null,null,null,null,null,null,null,null,null,null,null,{"$error":"#NAME?"},{"$f":"IF(AK112=\"\",\"\",elaiam(AM112))","v":{"$error":"#NAME?"}},{"$error":"#NAME?"}]
[null,null,null,null,null,null,null,null,null,null,null,null,null,null,null,null,null,null,null,null,null,null,null,null,null,null,null,null,null,null,null,null,null,null,null,null,{"$error":"#NAME?"},{"$f":"IF(AK113=\"\",\"\",elaiam(AM113))","v":{"$error":"#NAME?"}},{"$error":"#NAME?"}]
[null,null,null,null,null,null,null,null,null,null,null,null,null,null,null,null,null,null,null,null,null,null,null,null,null,null,null,null,null,null,null,null,null,null,null,null,{"$error":"#NAME?"},{"$f":"IF(AK114=\"\",\"\",elaiam(AM114))","v":{"$error":"#NAME?"}},{"$error":"#NAME?"}]
[null,null,null,null,null,null,null,null,null,null,null,null,null,null,null,null,null,null,null,null,null,null,null,null,null,null,null,null,null,null,null,null,null,null,null,null,{"$error":"#NAME?"},{"$f":"IF(AK115=\"\",\"\",elaiam(AM115))","v":{"$error":"#NAME?"}},{"$error":"#NAME?"}]
[null,null,null,null,null,null,null,null,null,null,null,null,null,null,null,null,null,null,null,null,null,null,null,null,null,null,null,null,null,null,null,null,null,null,null,null,{"$error":"#NAME?"},{"$f":"IF(AK116=\"\",\"\",elaiam(AM116))","v":{"$error":"#NAME?"}},{"$error":"#NAME?"}]
[null,null,null,null,null,null,null,null,null,null,null,null,null,null,null,null,null,null,null,null,null,null,null,null,null,null,null,null,null,null,null,null,null,null,null,null,{"$error":"#NAME?"},{"$f":"IF(AK117=\"\",\"\",elaiam(AM117))","v":{"$error":"#NAME?"}},{"$error":"#NAME?"}]
[null,null,null,null,null,null,null,null,null,null,null,null,null,null,null,null,null,null,null,null,null,null,null,null,null,null,null,null,null,null,null,null,null,null,null,null,{"$error":"#NAME?"},{"$f":"IF(AK118=\"\",\"\",elaiam(AM118))","v":{"$error":"#NAME?"}},{"$error":"#NAME?"}]
[null,null,null,null,null,null,null,null,null,null,null,null,null,null,null,null,null,null,null,null,null,null,null,null,null,null,null,null,null,null,null,null,null,null,null,null,{"$error":"#NAME?"},{"$f":"IF(AK119=\"\",\"\",elaiam(AM119))","v":{"$error":"#NAME?"}},{"$error":"#NAME?"}]
[null,null,null,null,null,null,null,null,null,null,null,null,null,null,null,null,null,null,null,null,null,null,null,null,null,null,null,null,null,null,null,null,null,null,null,null,{"$error":"#NAME?"},{"$f":"IF(AK120=\"\",\"\",elaiam(AM120))","v":{"$error":"#NAME?"}},{"$error":"#NAME?"}]
[null,null,null,null,null,null,null,null,null,null,null,null,null,null,null,null,null,null,null,null,null,null,null,null,null,null,null,null,null,null,null,null,null,null,null,null,{"$error":"#NAME?"},{"$f":"IF(AK121=\"\",\"\",elaiam(AM121))","v":{"$error":"#NAME?"}},{"$error":"#NAME?"}]
[null,null,null,null,null,null,null,null,null,null,null,null,null,null,null,null,null,null,null,null,null,null,null,null,null,null,null,null,null,null,null,null,null,null,null,null,{"$error":"#NAME?"},{"$f":"IF(AK122=\"\",\"\",elaiam(AM122))","v":{"$error":"#NAME?"}},{"$error":"#NAME?"}]
[null,null,null,null,null,null,null,null,null,null,null,null,null,null,null,null,null,null,null,null,null,null,null,null,null,null,null,null,null,null,null,null,null,null,null,null,{"$error":"#NAME?"},{"$f":"IF(AK123=\"\",\"\",elaiam(AM123))","v":{"$error":"#NAME?"}},{"$error":"#NAME?"}]
[null,null,null,null,null,null,null,null,null,null,null,null,null,null,null,null,null,null,null,null,null,null,null,null,null,null,null,null,null,null,null,null,null,null,null,null,{"$error":"#NAME?"},{"$f":"IF(AK124=\"\",\"\",elaiam(AM124))","v":{"$error":"#NAME?"}},{"$error":"#NAME?"}]
[null,null,null,null,null,null,null,null,null,null,null,null,null,null,null,null,null,null,null,null,null,null,null,null,null,null,null,null,null,null,null,null,null,null,null,null,{"$error":"#NAME?"},{"$f":"IF(AK125=\"\",\"\",elaiam(AM125))","v":{"$error":"#NAME?"}},{"$error":"#NAME?"}]
[null,null,null,null,null,null,null,null,null,null,null,null,null,null,null,null,null,null,null,null,null,null,null,null,null,null,null,null,null,null,null,null,null,null,null,null,{"$error":"#NAME?"},{"$f":"IF(AK126=\"\",\"\",elaiam(AM126))","v":{"$error":"#NAME?"}},{"$error":"#NAME?"}]
[null,null,null,null,null,null,null,null,null,null,null,null,null,null,null,null,null,null,null,null,null,null,null,null,null,null,null,null,null,null,null,null,null,null,null,null,{"$error":"#NAME?"},{"$f":"IF(AK127=\"\",\"\",elaiam(AM127))","v":{"$error":"#NAME?"}},{"$error":"#NAME?"}]
[null,null,null,null,null,null,null,null,null,null,null,null,null,null,null,null,null,null,null,null,null,null,null,null,null,null,null,null,null,null,null,null,null,null,null,null,{"$error":"#NAME?"},{"$f":"IF(AK128=\"\",\"\",elaiam(AM128))","v":{"$error":"#NAME?"}},{"$error":"#NAME?"}]
[null,null,null,null,null,null,null,null,null,null,null,null,null,null,null,null,null,null,null,null,null,null,null,null,null,null,null,null,null,null,null,null,null,null,null,null,{"$error":"#NAME?"},{"$f":"IF(AK129=\"\",\"\",elaiam(AM129))","v":{"$error":"#NAME?"}},{"$error":"#NAME?"}]
[null,null,null,null,null,null,null,null,null,null,null,null,null,null,null,null,null,null,null,null,null,null,null,null,null,null,null,null,null,null,null,null,null,null,null,null,{"$error":"#NAME?"},{"$f":"IF(AK130=\"\",\"\",elaiam(AM130))","v":{"$error":"#NAME?"}},{"$error":"#NAME?"}]
[null,null,null,null,null,null,null,null,null,null,null,null,null,null,null,null,null,null,null,null,null,null,null,null,null,null,null,null,null,null,null,null,null,null,null,null,{"$error":"#NAME?"},{"$f":"IF(AK131=\"\",\"\",elaiam(AM131))","v":{"$error":"#NAME?"}},{"$error":"#NAME?"}]
[null,null,null,null,null,null,null,null,null,null,null,null,null,null,null,null,null,null,null,null,null,null,null,null,null,null,null,null,null,null,null,null,null,null,null,null,{"$f":"Alsqr(F132:AJ132,\"غ\",\" -\",1,1)","v":{"$error":"#NAME?"}},{"$f":"IF(AK132=\"\",\"\",elaiam(AM132))","v":{"$error":"#NAME?"}},{"$f":"IF(AK132=\"\",\"\",COUNTIF(F132:AJ132,\"غ\"))","v":{"$error":"#NAME?"}}]
[null,null,null,null,null,null,null,null,null,null,null,null,null,null,null,null,null,null,null,null,null,null,null,null,null,null,null,null,null,null,null,null,null,null,null,null,{"$error":"#NAME?"},{"$f":"IF(AK133=\"\",\"\",elaiam(AM133))","v":{"$error":"#NAME?"}},{"$error":"#NAME?"}]
[null,null,null,null,null,null,null,null,null,null,null,null,null,null,null,null,null,null,null,null,null,null,null,null,null,null,null,null,null,null,null,null,null,null,null,null,{"$error":"#NAME?"},{"$f":"IF(AK134=\"\",\"\",elaiam(AM134))","v":{"$error":"#NAME?"}},{"$error":"#NAME?"}]
[null,null,null,null,null,null,null,null,null,null,null,null,null,null,null,null,null,null,null,null,null,null,null,null,null,null,null,null,null,null,null,null,null,null,null,null,{"$error":"#NAME?"},{"$f":"IF(AK135=\"\",\"\",elaiam(AM135))","v":{"$error":"#NAME?"}},{"$error":"#NAME?"}]
[null,null,null,null,null,null,null,null,null,null,null,null,null,null,null,null,null,null,null,null,null,null,null,null,null,null,null,null,null,null,null,null,null,null,null,null,{"$error":"#NAME?"},{"$f":"IF(AK136=\"\",\"\",elaiam(AM136))","v":{"$error":"#NAME?"}},{"$error":"#NAME?"}]
[null,null,null,null,null,null,null,null,null,null,null,null,null,null,null,null,null,null,null,null,null,null,null,null,null,null,null,null,null,null,null,null,null,null,null,null,{"$error":"#NAME?"},{"$f":"IF(AK137=\"\",\"\",elaiam(AM137))","v":{"$error":"#NAME?"}},{"$error":"#NAME?"}]
[null,null,null,null,null,null,null,null,null,null,null,null,null,null,null,null,null,null,null,null,null,null,null,null,null,null,null,null,null,null,null,null,null,null,null,null,{"$error":"#NAME?"},{"$f":"IF(AK138=\"\",\"\",elaiam(AM138))","v":{"$error":"#NAME?"}},{"$error":"#NAME?"}]
[null,null,null,null,null,null,null,null,null,null,null,null,null,null,null,null,null,null,null,null,null,null,null,null,null,null,null,null,null,null,null,null,null,null,null,null,{"$error":"#NAME?"},{"$f":"IF(AK139=\"\",\"\",elaiam(AM139))","v":{"$error":"#NAME?"}},{"$error":"#NAME?"}]
[null,null,null,null,null,null,null,null,null,null,null,null,null,null,null,null,null,null,null,null,null,null,null,null,null,null,null,null,null,null,null,null,null,null,null,null,{"$error":"#NAME?"},{"$f":"IF(AK140=\"\",\"\",elaiam(AM140))","v":{"$error":"#NAME?"}},{"$error":"#NAME?"}]
[null,null,null,null,null,null,null,null,null,null,null,null,null,null,null,null,null,null,null,null,null,null,null,null,null,null,null,null,null,null,null,null,null,null,null,null,{"$error":"#NAME?"},{"$f":"IF(AK141=\"\",\"\",elaiam(AM141))","v":{"$error":"#NAME?"}},{"$error":"#NAME?"}]
[null,null,null,null,null,null,null,null,null,null,null,null,null,null,null,null,null,null,null,null,null,null,null,null,null,null,null,null,null,null,null,null,null,null,null,null,{"$error":"#NAME?"},{"$f":"IF(AK142=\"\",\"\",elaiam(AM142))","v":{"$error":"#NAME?"}},{"$error":"#NAME?"}]
[null,null,null,null,null,null,null,null,null,null,null,null,null,null,null,null,null,null,null,null,null,null,null,null,null,null,null,null,null,null,null,null,null,null,null,null,{"$error":"#NAME?"},{"$f":"IF(AK143=\"\",\"\",elaiam(AM143))","v":{"$error":"#NAME?"}},{"$error":"#NAME?"}]
[null,null,null,null,null,null,null,null,null,null,null,null,null,null,null,null,null,null,null,null,null,null,null,null,null,null,null,null,null,null,null,null,null,null,null,null,{"$error":"#NAME?"},{"$f":"IF(AK144=\"\",\"\",elaiam(AM144))","v":{"$error":"#NAME?"}},{"$error":"#NAME?"}]
[null,null,null,null,null,null,null,null,null,null,null,null,null,null,null,null,null,null,null,null,null,null,null,null,null,null,null,null,null,null,null,null,null,null,null,null,{"$error":"#NAME?"},{"$f":"IF(AK145=\"\",\"\",elaiam(AM145))","v":{"$error":"#NAME?"}},{"$error":"#NAME?"}]
[null,null,null,null,null,null,null,null,null,null,null,null,null,null,null,null,null,null,null,null,null,null,null,null,null,null,null,null,null,null,null,null,null,null,null,null,{"$error":"#NAME?"},{"$f":"IF(AK146=\"\",\"\",elaiam(AM146))","v":{"$error":"#NAME?"}},{"$error":"#NAME?"}]
[null,null,null,null,null,null,null,null,null,null,null,null,null,null,null,null,null,null,null,null,null,null,null,null,null,null,null,null,null,null,null,null,null,null,null,null,{"$error":"#NAME?"},{"$f":"IF(AK147=\"\",\"\",elaiam(AM147))","v":{"$error":"#NAME?"}},{"$error":"#NAME?"}]
[null,null,null,null,null,null,null,null,null,null,null,null,null,null,null,null,null,null,null,null,null,null,null,null,null,null,null,null,null,null,null,null,null,null,null,null,{"$error":"#NAME?"},{"$f":"IF(AK148=\"\",\"\",elaiam(AM148))","v":{"$error":"#NAME?"}},{"$error":"#NAME?"}]
[null,null,null,null,null,null,null,null,null,null,null,null,null,null,null,null,null,null,null,null,null,null,null,null,null,null,null,null,null,null,null,null,null,null,null,null,{"$error":"#NAME?"},{"$f":"IF(AK149=\"\",\"\",elaiam(AM149))","v":{"$error":"#NAME?"}},{"$error":"#NAME?"}]
[null,null,null,null,null,null,null,null,null,null,null,null,null,null,null,null,null,null,null,null,null,null,null,null,null,null,null,null,null,null,null,null,null,null,null,null,{"$error":"#NAME?"},{"$f":"IF(AK150=\"\",\"\",elaiam(AM150))","v":{"$error":"#NAME?"}},{"$error":"#NAME?"}]
[null,null,null,null,null,null,null,null,null,null,null,null,null,null,null,null,null,null,null,null,null,null,null,null,null,null,null,null,null,null,null,null,null,null,null,null,{"$error":"#NAME?"},{"$f":"IF(AK151=\"\",\"\",elaiam(AM151))","v":{"$error":"#NAME?"}},{"$error":"#NAME?"}]
[null,null,null,null,null,null,null,null,null,null,null,null,null,null,null,null,null,null,null,null,null,null,null,null,null,null,null,null,null,null,null,null,null,null,null,null,{"$error":"#NAME?"},{"$f":"IF(AK152=\"\",\"\",elaiam(AM152))","v":{"$error":"#NAME?"}},{"$error":"#NAME?"}]
[null,null,null,null,null,null,null,null,null,null,null,null,null,null,null,null,null,null,null,null,null,null,null,null,null,null,null,null,null,null,null,null,null,null,null,null,{"$error":"#NAME?"},{"$f":"IF(AK153=\"\",\"\",elaiam(AM153))","v":{"$error":"#NAME?"}},{"$error":"#NAME?"}]
[null,null,null,null,null,null,null,null,null,null,null,null,null,null,null,null,null,null,null,null,null,null,null,null,null,null,null,null,null,null,null,null,null,null,null,null,{"$error":"#NAME?"},{"$f":"IF(AK154=\"\",\"\",elaiam(AM154))","v":{"$error":"#NAME?"}},{"$error":"#NAME?"}]
[null,null,null,null,null,null,null,null,null,null,null,null,null,null,null,null,null,null,null,null,null,null,null,null,null,null,null,null,null,null,null,null,null,null,null,null,{"$error":"#NAME?"},{"$f":"IF(AK155=\"\",\"\",elaiam(AM155))","v":{"$error":"#NAME?"}},{"$error":"#NAME?"}]
[null,null,null,null,null,null,null,null,null,null,null,null,null,null,null,null,null,null,null,null,null,null,null,null,null,null,null,null,null,null,null,null,null,null,null,null,{"$error":"#NAME?"},{"$f":"IF(AK156=\"\",\"\",elaiam(AM156))","v":{"$error":"#NAME?"}},{"$error":"#NAME?"}]
[null,null,null,null,null,null,null,null,null,null,null,null,null,null,null,null,null,null,null,null,null,null,null,null,null,null,null,null,null,null,null,null,null,null,null,null,{"$error":"#NAME?"},{"$f":"IF(AK157=\"\",\"\",elaiam(AM157))","v":{"$error":"#NAME?"}},{"$error":"#NAME?"}]
[null,null,null,null,null,null,null,null,null,null,null,null,null,null,null,null,null,null,null,null,null,null,null,null,null,null,null,null,null,null,null,null,null,null,null,null,{"$error":"#NAME?"},{"$f":"IF(AK158=\"\",\"\",elaiam(AM158))","v":{"$error":"#NAME?"}},{"$error":"#NAME?"}]
[null,null,null,null,null,null,null,null,null,null,null,null,null,null,null,null,null,null,null,null,null,null,null,null,null,null,null,null,null,null,null,null,null,null,null,null,{"$error":"#NAME?"},{"$f":"IF(AK159=\"\",\"\",elaiam(AM159))","v":{"$error":"#NAME?"}},{"$error":"#NAME?"}]
[null,null,null,null,null,null,null,null,null,null,null,null,null,null,null,null,null,null,null,null,null,null,null,null,null,null,null,null,null,null,null,null,null,null,null,null,{"$error":"#NAME?"},{"$f":"IF(AK160=\"\",\"\",elaiam(AM160))","v":{"$error":"#NAME?"}},{"$error":"#NAME?"}]
[null,null,null,null,null,null,null,null,null,null,null,null,null,null,null,null,null,null,null,null,null,null,null,null,null,null,null,null,null,null,null,null,null,null,null,null,{"$error":"#NAME?"},{"$f":"IF(AK161=\"\",\"\",elaiam(AM161))","v":{"$error":"#NAME?"}},{"$error":"#NAME?"}]
[null,null,null,null,null,null,null,null,null,null,null,null,null,null,null,null,null,null,null,null,null,null,null,null,null,null,null,null,null,null,null,null,null,null,null,null,{"$error":"#NAME?"},{"$f":"IF(AK162=\"\",\"\",elaiam(AM162))","v":{"$error":"#NAME?"}},{"$error":"#NAME?"}]
[null,null,null,null,null,null,null,null,null,null,null,null,null,null,null,null,null,null,null,null,null,null,null,null,null,null,null,null,null,null,null,null,null,null,null,null,{"$error":"#NAME?"},{"$f":"IF(AK163=\"\",\"\",elaiam(AM163))","v":{"$error":"#NAME?"}},{"$error":"#NAME?"}]
[null,null,null,null,null,null,null,null,null,null,null,null,null,null,null,null,null,null,null,null,null,null,null,null,null,null,null,null,null,null,null,null,null,null,null,null,{"$error":"#NAME?"},{"$f":"IF(AK164=\"\",\"\",elaiam(AM164))","v":{"$error":"#NAME?"}},{"$error":"#NAME?"}]
[null,null,null,null,null,null,null,null,null,null,null,null,null,null,null,null,null,null,null,null,null,null,null,null,null,null,null,null,null,null,null,null,null,null,null,null,{"$error":"#NAME?"},{"$f":"IF(AK165=\"\",\"\",elaiam(AM165))","v":{"$error":"#NAME?"}},{"$error":"#NAME?"}]
[null,null,null,null,null,null,null,null,null,null,null,null,null,null,null,null,null,null,null,null,null,null,null,null,null,null,null,null,null,null,null,null,null,null,null,null,{"$error":"#NAME?"},{"$f":"IF(AK166=\"\",\"\",elaiam(AM166))","v":{"$error":"#NAME?"}},{"$error":"#NAME?"}]
[null,null,null,null,null,null,null,null,null,null,null,null,null,null,null,null,null,null,null,null,null,null,null,null,null,null,null,null,null,null,null,null,null,null,null,null,{"$error":"#NAME?"},{"$f":"IF(AK167=\"\",\"\",elaiam(AM167))","v":{"$error":"#NAME?"}},{"$error":"#NAME?"}]
[null,null,null,null,null,null,null,null,null,null,null,null,null,null,null,null,null,null,null,null,null,null,null,null,null,null,null,null,null,null,null,null,null,null,null,null,{"$error":"#NAME?"},{"$f":"IF(AK168=\"\",\"\",elaiam(AM168))","v":{"$error":"#NAME?"}},{"$error":"#NAME?"}]
[null,null,null,null,null,null,null,null,null,null,null,null,null,null,null,null,null,null,null,null,null,null,null,null,null,null,null,null,null,null,null,null,null,null,null,null,{"$error":"#NAME?"},{"$f":"IF(AK169=\"\",\"\",elaiam(AM169))","v":{"$error":"#NAME?"}},{"$error":"#NAME?"}]
[null,null,null,null,null,null,null,null,null,null,null,null,null,null,null,null,null,null,null,null,null,null,null,null,null,null,null,null,null,null,null,null,null,null,null,null,{"$error":"#NAME?"},{"$f":"IF(AK170=\"\",\"\",elaiam(AM170))","v":{"$error":"#NAME?"}},{"$error":"#NAME?"}]
[null,null,null,null,null,null,null,null,null,null,null,null,null,null,null,null,null,null,null,null,null,null,null,null,null,null,null,null,null,null,null,null,null,null,null,null,{"$error":"#NAME?"},{"$f":"IF(AK171=\"\",\"\",elaiam(AM171))","v":{"$error":"#NAME?"}},{"$error":"#NAME?"}]
[null,null,null,null,null,null,null,null,null,null,null,null,null,null,null,null,null,null,null,null,null,null,null,null,null,null,null,null,null,null,null,null,null,null,null,null,{"$error":"#NAME?"},{"$f":"IF(AK172=\"\",\"\",elaiam(AM172))","v":{"$error":"#NAME?"}},{"$error":"#NAME?"}]
[null,null,null,null,null,null,null,null,null,null,null,null,null,null,null,null,null,null,null,null,null,null,null,null,null,null,null,null,null,null,null,null,null,null,null,null,{"$error":"#NAME?"},{"$f":"IF(AK173=\"\",\"\",elaiam(AM173))","v":{"$error":"#NAME?"}},{"$error":"#NAME?"}]
[null,null,null,null,null,null,null,null,null,null,null,null,null,null,null,null,null,null,null,null,null,null,null,null,null,null,null,null,null,null,null,null,null,null,null,null,{"$error":"#NAME?"},{"$f":"IF(AK174=\"\",\"\",elaiam(AM174))","v":{"$error":"#NAME?"}},{"$error":"#NAME?"}]
[null,null,null,null,null,null,null,null,null,null,null,null,null,null,null,null,null,null,null,null,null,null,null,null,null,null,null,null,null,null,null,null,null,null,null,null,{"$error":"#NAME?"},{"$f":"IF(AK175=\"\",\"\",elaiam(AM175))","v":{"$error":"#NAME?"}},{"$error":"#NAME?"}]
[null,null,null,null,null,null,null,null,null,null,null,null,null,null,null,null,null,null,null,null,null,null,null,null,null,null,null,null,null,null,null,null,null,null,null,null,{"$error":"#NAME?"},{"$f":"IF(AK176=\"\",\"\",elaiam(AM176))","v":{"$error":"#NAME?"}},{"$error":"#NAME?"}]
[null,null,null,null,null,null,null,null,null,null,null,null,null,null,null,null,null,null,null,null,null,null,null,null,null,null,null,null,null,null,null,null,null,null,null,null,{"$error":"#NAME?"},{"$f":"IF(AK177=\"\",\"\",elaiam(AM177))","v":{"$error":"#NAME?"}},{"$error":"#NAME?"}]
[null,null,null,null,null,null,null,null,null,null,null,null,null,null,null,null,null,null,null,null,null,null,null,null,null,null,null,null,null,null,null,null,null,null,null,null,{"$error":"#NAME?"},{"$f":"IF(AK178=\"\",\"\",elaiam(AM178))","v":{"$error":"#NAME?"}},{"$error":"#NAME?"}]
[null,null,null,null,null,null,null,null,null,null,null,null,null,null,null,null,null,null,null,null,null,null,null,null,null,null,null,null,null,null,null,null,null,null,null,null,{"$error":"#NAME?"},{"$f":"IF(AK179=\"\",\"\",elaiam(AM179))","v":{"$error":"#NAME?"}},{"$error":"#NAME?"}]
[null,null,null,null,null,null,null,null,null,null,null,null,null,null,null,null,null,null,null,null,null,null,null,null,null,null,null,null,null,null,null,null,null,null,null,null,{"$error":"#NAME?"},{"$f":"IF(AK180=\"\",\"\",elaiam(AM180))","v":{"$error":"#NAME?"}},{"$error":"#NAME?"}]
[null,null,null,null,null,null,null,null,null,null,null,null,null,null,null,null,null,null,null,null,null,null,null,null,null,null,null,null,null,null,null,null,null,null,null,null,{"$error":"#NAME?"},{"$f":"IF(AK181=\"\",\"\",elaiam(AM181))","v":{"$error":"#NAME?"}},{"$error":"#NAME?"}]
[null,null,null,null,null,null,null,null,null,null,null,null,null,null,null,null,null,null,null,null,null,null,null,null,null,null,null,null,null,null,null,null,null,null,null,null,{"$error":"#NAME?"},{"$f":"IF(AK182=\"\",\"\",elaiam(AM182))","v":{"$error":"#NAME?"}},{"$error":"#NAME?"}]
[null,null,null,null,null,null,null,null,null,null,null,null,null,null,null,null,null,null,null,null,null,null,null,null,null,null,null,null,null,null,null,null,null,null,null,null,{"$error":"#NAME?"},{"$f":"IF(AK183=\"\",\"\",elaiam(AM183))","v":{"$error":"#NAME?"}},{"$error":"#NAME?"}]
[null,null,null,null,null,null,null,null,null,null,null,null,null,null,null,null,null,null,null,null,null,null,null,null,null,null,null,null,null,null,null,null,null,null,null,null,{"$error":"#NAME?"},{"$f":"IF(AK184=\"\",\"\",elaiam(AM184))","v":{"$error":"#NAME?"}},{"$error":"#NAME?"}]
[null,null,null,null,null,null,null,null,null,null,null,null,null,null,null,null,null,null,null,null,null,null,null,null,null,null,null,null,null,null,null,null,null,null,null,null,{"$error":"#NAME?"},{"$f":"IF(AK185=\"\",\"\",elaiam(AM185))","v":{"$error":"#NAME?"}},{"$error":"#NAME?"}]
[null,null,null,null,null,null,null,null,null,null,null,null,null,null,null,null,null,null,null,null,null,null,null,null,null,null,null,null,null,null,null,null,null,null,null,null,{"$error":"#NAME?"},{"$f":"IF(AK186=\"\",\"\",elaiam(AM186))","v":{"$error":"#NAME?"}},{"$error":"#NAME?"}]
[null,null,null,null,null,null,null,null,null,null,null,null,null,null,null,null,null,null,null,null,null,null,null,null,null,null,null,null,null,null,null,null,null,null,null,null,{"$error":"#NAME?"},{"$f":"IF(AK187=\"\",\"\",elaiam(AM187))","v":{"$error":"#NAME?"}},{"$error":"#NAME?"}]
[null,null,null,null,null,null,null,null,null,null,null,null,null,null,null,null,null,null,null,null,null,null,null,null,null,null,null,null,null,null,null,null,null,null,null,null,{"$error":"#NAME?"},{"$f":"IF(AK188=\"\",\"\",elaiam(AM188))","v":{"$error":"#NAME?"}},{"$error":"#NAME?"}]
[null,null,null,null,null,null,null,null,null,null,null,null,null,null,null,null,null,null,null,null,null,null,null,null,null,null,null,null,null,null,null,null,null,null,null,null,{"$error":"#NAME?"},{"$f":"IF(AK189=\"\",\"\",elaiam(AM189))","v":{"$error":"#NAME?"}},{"$error":"#NAME?"}]
[null,null,null,null,null,null,null,null,null,null,null,null,null,null,null,null,null,null,null,null,null,null,null,null,null,null,null,null,null,null,null,null,null,null,null,null,{"$error":"#NAME?"},{"$f":"IF(AK190=\"\",\"\",elaiam(AM190))","v":{"$error":"#NAME?"}},{"$error":"#NAME?"}]
[null,null,null,null,null,null,null,null,null,null,null,null,null,null,null,null,null,null,null,null,null,null,null,null,null,null,null,null,null,null,null,null,null,null,null,null,{"$error":"#NAME?"},{"$f":"IF(AK191=\"\",\"\",elaiam(AM191))","v":{"$error":"#NAME?"}},{"$error":"#NAME?"}]
[null,null,null,null,null,null,null,null,null,null,null,null,null,null,null,null,null,null,null,null,null,null,null,null,null,null,null,null,null,null,null,null,null,null,null,null,{"$error":"#NAME?"},{"$f":"IF(AK192=\"\",\"\",elaiam(AM192))","v":{"$error":"#NAME?"}},{"$error":"#NAME?"}]
[null,null,null,null,null,null,null,null,null,null,null,null,null,null,null,null,null,null,null,null,null,null,null,null,null,null,null,null,null,null,null,null,null,null,null,null,{"$error":"#NAME?"},{"$f":"IF(AK193=\"\",\"\",elaiam(AM193))","v":{"$error":"#NAME?"}},{"$error":"#NAME?"}]
[null,null,null,null,null,null,null,null,null,null,null,null,null,null,null,null,null,null,null,null,null,null,null,null,null,null,null,null,null,null,null,null,null,null,null,null,{"$error":"#NAME?"},{"$f":"IF(AK194=\"\",\"\",elaiam(AM194))","v":{"$error":"#NAME?"}},{"$error":"#NAME?"}]
[null,null,null,null,null,null,null,null,null,null,null,null,null,null,null,null,null,null,null,null,null,null,null,null,null,null,null,null,null,null,null,null,null,null,null,null,{"$error":"#NAME?"},{"$f":"IF(AK195=\"\",\"\",elaiam(AM195))","v":{"$error":"#NAME?"}},{"$error":"#NAME?"}]
[null,null,null,null,null,null,null,null,null,null,null,null,null,null,null,null,null,null,null,null,null,null,null,null,null,null,null,null,null,null,null,null,null,null,null,null,{"$f":"Alsqr(F196:AJ196,\"غ\",\" -\",1,1)","v":{"$error":"#NAME?"}},{"$f":"IF(AK196=\"\",\"\",elaiam(AM196))","v":{"$error":"#NAME?"}},{"$f":"IF(AK196=\"\",\"\",COUNTIF(F196:AJ196,\"غ\"))","v":{"$error":"#NAME?"}}]
[null,null,null,null,null,null,null,null,null,null,null,null,null,null,null,null,null,null,null,null,null,null,null,null,null,null,null,null,null,null,null,null,null,null,null,null,{"$error":"#NAME?"},{"$f":"IF(AK197=\"\",\"\",elaiam(AM197))","v":{"$error":"#NAME?"}},{"$error":"#NAME?"}]
[null,null,null,null,null,null,null,null,null,null,null,null,null,null,null,null,null,null,null,null,null,null,null,null,null,null,null,null,null,null,null,null,null,null,null,null,{"$error":"#NAME?"},{"$f":"IF(AK198=\"\",\"\",elaiam(AM198))","v":{"$error":"#NAME?"}},{"$error":"#NAME?"}]
[null,null,null,null,null,null,null,null,null,null,null,null,null,null,null,null,null,null,null,null,null,null,null,null,null,null,null,null,null,null,null,null,null,null,null,null,{"$error":"#NAME?"},{"$f":"IF(AK199=\"\",\"\",elaiam(AM199))","v":{"$error":"#NAME?"}},{"$error":"#NAME?"}]
[null,null,null,null,null,null,null,null,null,null,null,null,null,null,null,null,null,null,null,null,null,null,null,null,null,null,null,null,null,null,null,null,null,null,null,null,{"$error":"#NAME?"},{"$f":"IF(AK200=\"\",\"\",elaiam(AM200))","v":{"$error":"#NAME?"}},{"$error":"#NAME?"}]
[null,null,null,null,null,null,null,null,null,null,null,null,null,null,null,null,null,null,null,null,null,null,null,null,null,null,null,null,null,null,null,null,null,null,null,null,{"$error":"#NAME?"},{"$f":"IF(AK201=\"\",\"\",elaiam(AM201))","v":{"$error":"#NAME?"}},{"$error":"#NAME?"}]
[null,null,null,null,null,null,null,null,null,null,null,null,null,null,null,null,null,null,null,null,null,null,null,null,null,null,null,null,null,null,null,null,null,null,null,null,{"$error":"#NAME?"},{"$f":"IF(AK202=\"\",\"\",elaiam(AM202))","v":{"$error":"#NAME?"}},{"$error":"#NAME?"}]
[null,null,null,null,null,null,null,null,null,null,null,null,null,null,null,null,null,null,null,null,null,null,null,null,null,null,null,null,null,null,null,null,null,null,null,null,{"$error":"#NAME?"},{"$f":"IF(AK203=\"\",\"\",elaiam(AM203))","v":{"$error":"#NAME?"}},{"$error":"#NAME?"}]
[null,null,null,null,null,null,null,null,null,null,null,null,null,null,null,null,null,null,null,null,null,null,null,null,null,null,null,null,null,null,null,null,null,null,null,null,{"$error":"#NAME?"},{"$f":"IF(AK204=\"\",\"\",elaiam(AM204))","v":{"$error":"#NAME?"}},{"$error":"#NAME?"}]
[null,null,null,null,null,null,null,null,null,null,null,null,null,null,null,null,null,null,null,null,null,null,null,null,null,null,null,null,null,null,null,null,null,null,null,null,{"$error":"#NAME?"},{"$f":"IF(AK205=\"\",\"\",elaiam(AM205))","v":{"$error":"#NAME?"}},{"$error":"#NAME?"}]
[null,null,null,null,null,null,null,null,null,null,null,null,null,null,null,null,null,null,null,null,null,null,null,null,null,null,null,null,null,null,null,null,null,null,null,null,{"$error":"#NAME?"},{"$f":"IF(AK206=\"\",\"\",elaiam(AM206))","v":{"$error":"#NAME?"}},{"$error":"#NAME?"}]